Cogmind - Beta 16 @@@ ROGUE MODE // 2025.11.13 @ 01:32:13 Player: Red Box Result: Destroyed by Lightning with EMDS Performance ------------- Evolutions (4) 2000 Regions Visited (11) 2200 Robots Destroyed (136) 680 Value Destroyed (5507) 5507 Prototype IDs (35) 700 Alien Tech Used (0) 0 Bonus (6252) 6252 TOTAL SCORE: 17339 Bonus ------- High Alert Combat Kills 708 Follower Combat Kills 3244 Network Hubs Disabled 400 Registered with UFD 300 Met Optimus in HQ 500 Built Enhanced Grunts 300 A7 Reached Mainframe 300 Met R17 at Cetus 500 Cogmind --------- Core Integrity 0/850 Matter 239/300 Energy 269/325 System Corruption 27% Temperature Hot (223) Movement Treading (160) Location -6/Hub_04(d) Parts ------- > --- POWER (1) -------- Antimatter Reactor > --- PROPULSION (2) --- Centrium Heavy Treads > --- UTILITY (9) ------ Advanced Heat Sink Advanced Heat Sink Large Storage Unit Machine Analyzer Advanced Signal Interpreter Core Analyzer Advanced System Shield > --- WEAPON (3) ------- Advanced Variable Charge Gun Advanced Variable Charge Gun > --- INVENTORY (15) --- Quantum Reactor Advanced Power Amplifier Energy Well (350) Advanced Energy Well Matter Compressor (250) Advanced Particle Charger Advanced Variable Charge Gun EMDS Neutron Cannon Advanced KE Penetrator Advanced KE Penetrator Peak State ------------ > --- POWER ------------ Antimatter Reactor > --- PROPULSION ------- Centrium Heavy Treads > --- UTILITY ---------- Advanced Heat Sink Advanced Heat Sink Large Storage Unit Machine Analyzer Advanced Signal Interpreter Core Analyzer Layered Medium Armor Plating Thermal Shield Advanced System Shield > --- WEAPON ----------- Advanced Variable Charge Gun Advanced Variable Charge Gun Hypervelocity Gauss Cannon > --- INVENTORY -------- Quantum Reactor Advanced Power Amplifier Energy Well Advanced Energy Well Matter Compressor Advanced Particle Charger Advanced Variable Charge Gun EMDS Neutron Cannon Advanced KE Penetrator Advanced KE Penetrator [Rating: 95] Favorites ----------- Power Fission Core Engine Ion Engine Power Core Fission Core Reactor Cold Fusion Reactor Propulsion Armored Huge Wheel Treads Light Treads Leg Aluminum Leg Wheel Armored Huge Wheel Utility Humpback Device Improved Sensor Array Storage Humpback Processor Advanced Signal Interpreter Hackware Advanced System Shield Protection Layered Medium Armor Plating Weapon Heavy Flak Cannon Energy Gun EM Pulse Gun Energy Cannon Heavy Plasma Cannon Ballistic Gun Flak Gun Ballistic Cannon Heavy Flak Cannon Launcher Grenade Launcher Special Weapon Mining Laser Special Melee Weapon Improved Datajack Build | -11 -10 -10 -10 -8 -6 -6 -6 -6 -6 -6 -6 ------- Run | Yrd Mat Min Sub Scr Fac Was Fac Ext Cet Arc Hub Slots Evolved 8 | . . . . . 8 . . . . . . Power . | . . . . . . . . . . . . Propulsion . | . . . . . . . . . . . . Utility 7 | . . . . . 7 . . . . . . Weapon 1 | . . . . . 1 . . . . . . Parts Attached 153 | 7 18 10 2 11 36 1 17 20 7 2 22 Power 14 | 1 3 2 . 1 . . 1 5 . . 1 Engine 6 | 1 3 1 . . . . . 1 . . . Core 6 | . . 1 . 1 . . 1 3 . . . Reactor 2 | . . . . . . . . 1 . . 1 Propulsion 20 | 2 6 2 1 2 4 . . 2 1 . . Treads 5 | . 1 . 1 1 1 . . . 1 . . Leg 7 | 2 4 1 . . . . . . . . . Wheel 8 | . 1 1 . 1 3 . . 2 . . . Hover . | . . . . . . . . . . . . Flight . | . . . . . . . . . . . . Utility 64 | 2 2 1 . 3 24 . 6 7 3 1 15 Device 34 | 1 . . . . 15 . 4 4 1 . 9 Storage 7 | 1 2 . . 2 . . . 1 . . 1 Processor 5 | . . . . . 3 . . . 1 . 1 Hackware 4 | . . . . . 2 . 2 . . . . Protection 14 | . . 1 . 1 4 . . 2 1 1 4 Artifact . | . . . . . . . . . . . . Weapon 55 | 2 7 5 1 5 8 1 10 6 3 1 6 Energy Gun 12 | 2 3 2 . 1 2 . . . 1 . 1 Energy Cannon 9 | . . . . . 2 . 2 1 . . 4 Ballistic Gun 10 | . 1 . 1 3 2 . 1 . 1 . 1 Ballistic Cannon 11 | . . 1 . . 1 . 4 4 1 . . Launcher 10 | . 2 2 . . 1 1 3 1 . . . Special Weapon 1 | . 1 . . . . . . . . . . Impact Weapon . | . . . . . . . . . . . . Slashing Weapon . | . . . . . . . . . . . . Piercing Weapon . | . . . . . . . . . . . . Special Melee Weapon 2 | . . . . 1 . . . . . 1 . Unidentified Prototypes 14 | . . . . . . . 5 2 3 . 4 Corrupted Parts 1 | . . . . . . . . . . . 1 System Corruption 11 | . . . . . . . . . . . 11 Parts Lost 41 | . 1 1 . . 2 . 8 11 . 1 17 Power 1 | . . . . . . . 1 . . . . Propulsion 5 | . 1 . . . . . 1 1 . . 2 Utility 17 | . . . . . 1 . 2 5 . 1 8 Weapon 17 | . . 1 . . 1 . 4 4 . . 7 Highest Loss Streak 11 | . 1 1 . . 1 . 2 11 . 1 9 To Critical Strikes 1 | . . . . . . . . 1 . . . Average Backups 21 | 4 10 14 14 18 28 30 28 29 13 13 12 Power 1 | . . . . . 2 2 1 2 . 1 1 Propulsion 3 | 2 3 3 2 2 4 4 3 3 1 2 1 Utility 8 | . 2 4 5 7 11 13 12 14 3 2 2 Weapon 7 | . 4 6 7 7 9 9 9 8 7 8 6 Tool/Special . | . . . . . . . . . . . . Unused Backups 48 | . 2 . . 12 7 . 9 8 . . 10 Power 5 | . . . . . 1 . 3 . . . 1 Propulsion 7 | . . . . 3 1 . 1 1 . . 1 Utility 20 | . . . . 5 2 . 2 6 . . 5 Weapon 15 | . 2 . . 4 3 . 2 1 . . 3 Tool/Special 1 | . . . . . . . 1 . . . . Average Slot Usage (%) 88 | . 97 99 100 83 83 86 85 86 93 92 90 Engine 2 | . 14 12 . . . . . . . . . Core 6 | . . 1 14 14 6 6 5 5 . . . Treads 1 | . . 1 14 6 . . . . . . . Leg 4 | . 25 24 . . . . . . . . . Wheel 7 | . . 1 14 10 6 13 12 8 6 6 5 Device 13 | . 14 12 . . 14 26 20 21 20 13 16 Storage 9 | . 14 14 14 13 6 6 5 6 6 6 6 Processor 4 | . . . . . 10 6 6 6 12 13 13 Hackware 4 | . . . . . 7 . 12 7 6 6 6 Protection 6 | . . 1 14 8 8 6 . 8 13 19 14 Energy Gun 7 | . 25 7 . 14 2 6 2 1 . . 3 Energy Cannon 2 | . . . . . 5 5 4 1 . . 5 Ballistic Gun 4 | . . 1 19 11 6 . 1 . . . 1 Ballistic Cannon 6 | . . 7 . . 3 . 8 16 19 19 8 Launcher 1 | . 1 11 8 . . 6 . . . . . Peak Build Rating 95 | 9 12 17 15 36 72 67 75 78 86 80 95 Average Rating 50 | 6 9 11 14 27 67 67 70 74 75 78 83 On Entrance 42 | . 9 11 14 15 36 70 67 66 69 78 79 Avg Prop Armor Cover (%) 8 | . 11 9 9 8 . . . . . . . Naked Turns . | . . . . . . . . . . . . Heaviest Build 274 | 14 31 38 38 219 252 244 246 274 100 103 104 Greatest Support 38 | 20 20 20 20 38 28 20 20 28 28 28 28 Greatest Overweight (x) 29 | 4 2 3 3 7 12 12 29 16 3 3 3 Average Overweight (x) 5 | . . 1 2 2 8 12 11 9 3 3 2 Largest Inventory Capacity 35 | 8 15 15 15 35 35 35 35 35 15 15 15 Average Capacity 25 | 7 11 15 15 22 35 35 34 34 15 15 15 Most Carried 35 | 7 15 15 15 35 35 35 35 35 15 15 15 Average Carried 24 | 4 10 14 14 19 33 35 33 33 14 15 14 Final Capacity 35 | 8 15 15 15 35 35 35 35 15 15 15 15 Final Carried 35 | 7 15 15 15 35 35 35 34 15 15 15 12 Scrap Suit Usage (%) 20 | . . . . . 7 26 92 23 . . . Parts Cannibalized 29 | . . . . . 11 . 14 4 . . . Class Distribution -------------------- 30% | Mutant 20% | Hauler-Skirmisher 17% | Hauler-Tank 10% | Commander-Tank 7% | Hauler-Mutant 4% | Scavenger-Mutant Dominant Class ---------------- Mutant | -10/Materials Mutant | -10/Mines Mutant | -10/Subcaves Mutant | -8/Scraptown Hauler-Tank | -6/Factory Hauler-Skirmisher | -6/Waste Hauler-Skirmisher | -6/Factory Commander-Tank | -6/Extension Tank | -6/Cetus Commander-Tank | -6/Archives Scavenger-Tank | -6/Hub_04(d) Resources | -11 -10 -10 -10 -8 -6 -6 -6 -6 -6 -6 -6 ----------- Run | Yrd Mat Min Sub Scr Fac Was Fac Ext Cet Arc Hub Matter Collected 8492 | 270 505 383 110 388 1579 . 1178 1913 618 325 1223 Remotely . | . . . . . . . . . . . . Salvage Created 5204 | 137 670 182 123 . 830 . 779 732 326 197 1228 Parts 264 | 9 47 14 7 . 38 . 46 18 12 10 63 Haulers Intercepted 5 | . 2 . . . . . . 2 . . 1 Recyclers Shooed 7 | . 1 . . . 5 . . . . . 1 Parts Field Recycled . | . . . . . . . . . . . . Retrieved Matter . | . . . . . . . . . . . . Parts Self-Destructed . | . . . . . . . . . . . . Prevented . | . . . . . . . . . . . . Parts Restored 2 | . . . . . 2 . . . . . . Broken 2 | . . . . . 2 . . . . . . Kills | -11 -10 -10 -10 -8 -6 -6 -6 -6 -6 -6 -6 ------- Run | Yrd Mat Min Sub Scr Fac Was Fac Ext Cet Arc Hub Combat Hostiles Destroyed 102 | . 19 11 4 . 15 . 18 11 4 3 17 Guns 37 | . 11 7 2 . 7 . 5 . . . 5 Cannons 45 | . . 1 . . 6 . 13 9 4 3 9 AOE 17 | . 8 3 2 . . . . 1 . . 3 Classes Destroyed 19 | 2 4 1 1 . 4 . 1 2 1 1 2 Worker 9 | . . . . . 1 . 3 2 . . 3 Builder 5 | . . . . . 2 . . . . . 3 Tunneler 4 | 3 . . . . . . . . . . 1 Hauler 5 | . 2 . . . . . . 2 . . 1 Recycler 4 | 1 1 . . . . . . 1 . . 1 Mechanic 1 | . . . . . . . . . . . 1 Operator 1 | . . . . . . . . . . 1 . Watcher 6 | . 3 . . . . . 1 . 1 . 1 Swarmer 24 | . 9 6 . . 2 . 4 3 . . . Grunt 33 | . 10 3 . . 8 . 4 2 . . 6 Brawler 1 | . . . . . . . . . . . 1 Duelist 3 | . . . . . . . 1 1 . . 1 Protector 2 | . . . . . . . . . . . 2 Sentry 8 | . . . . . . . . 4 . 3 1 Hunter 1 | . . . . . 1 . . . . . . Programmer 14 | . . . . . 4 . 9 . . . 1 Behemoth 1 | . . . . . . . . 1 . . . Cetus Guard 4 | . . . . . . . . . 4 . . Lightning 5 | . . . . . . . . . . . 5 Subdweller 4 | . . . 4 . . . . . . . . Assembled 2 | . . 2 . . . . . . . . . Savage 1 | . . . . . . . . . 1 . . Best Kill Streak 8 | 2 4 3 2 . 2 . 4 3 2 2 8 Combat Bots Only 5 | . 4 3 2 . 2 . 4 3 2 2 5 Max Kills in Single Turn 3 | 1 3 2 1 . 2 . 2 2 2 1 3 Gunslinging 1 | . . 1 . . . . . . . . . Exploded 3 | . 3 1 1 . . . . 1 . . 2 Melee . | . . . . . . . . . . . . Uniques/NPCs Destroyed . | . . . . . . . . . . . . Combat | -11 -10 -10 -10 -8 -6 -6 -6 -6 -6 -6 -6 -------- Run | Yrd Mat Min Sub Scr Fac Was Fac Ext Cet Arc Hub Hostile Shots Fired 584 | . 77 19 23 . 66 . 92 105 27 12 163 Missed 172 | . 22 8 6 . 24 . 23 34 7 2 46 Hits 412 | . 55 11 17 . 42 . 69 71 20 10 117 Melee 9 | . . . . . . . 9 . . . . Projectile 403 | . 55 11 17 . 42 . 60 71 20 10 117 AOE 5 | . . . 2 . . . . 2 . . 1 Critical Strikes 25 | . . . 3 . 3 . 3 4 2 . 10 Part Disruptions 2 | . . . . . . . . . . . 2 Damage Taken 8807 | . 593 179 482 . 1271 . 1608 752 317 127 3478 Core 1112 | . 115 33 91 . 55 . 191 93 38 . 496 Absorbed by Shields 879 | . . . . . . . . 450 159 69 201 Ignored by Resistances 765 | . . . . . 142 . 104 240 151 63 65 Regen/Repaired (Parts) 925 | . 90 . . . 313 . 487 35 . . . Core Remaining (%) 52 | 100 . . . 4 . . . . . . . Volleys Fired 477 | 10 60 31 13 . 60 39 84 56 22 18 84 Largest 3 | 2 2 2 2 . 3 1 3 3 3 3 3 Hottest 371 | 90 100 80 53 . 174 90 209 189 240 147 371 Shots Fired 962 | 20 115 48 22 . 107 40 145 127 64 49 225 Gun 327 | 20 103 25 15 . 45 . 42 15 1 . 61 Cannon 592 | . . 7 . . 59 40 103 111 63 49 160 Launcher 38 | . 7 16 7 . 3 . . 1 . . 4 Special 5 | . 5 . . . . . . . . . . Kinetic 441 | . . 7 15 . 22 . 49 109 63 49 127 Thermal 377 | 20 60 . . . 53 40 92 17 1 . 94 Explosive 35 | . 7 16 7 . . . . 1 . . 4 Electromagnetic 109 | . 48 25 . . 32 . 4 . . . . Robot Hit Streak 14 | 9 12 5 4 . 14 1 9 11 9 4 6 Robot Miss Streak 9 | 1 4 3 2 . 6 . 8 9 5 3 9 Penetration Max 1 | . . . . . . . . 1 1 1 1 Secondary Targets 1 | . . 1 . . . . . . . . . Max Gunslinging Chain 1 | . . 1 . . . . . . . . . Shots Hit Robots 468 | 15 66 20 10 2 59 1 66 88 25 27 89 Core Hits 289 | 5 37 16 6 . 35 . 50 54 11 11 64 Critical Kills 24 | . . . . . 2 . . 4 5 3 10 Critical Parts Destroyed 36 | . . . . . 1 . . 8 11 6 10 Critical Strikes 79 | 1 1 . . . 4 . 1 21 17 12 22 Burn 5 | 1 1 . . . 1 . 1 1 . . . Meltdown 2 | . . . . . 1 . . 1 . . . Destroy 66 | . . . . . 2 . . 14 17 12 21 Blast 6 | . . . . . . . . 5 . . 1 Melee Attacks 3 | . . . . 2 . . . . . 1 . Impact . | . . . . . . . . . . . . Slashing . | . . . . . . . . . . . . Piercing . | . . . . . . . . . . . . Sneak Attacks 3 | . . . . 2 . . . . . 1 . Combat Hostiles . | . . . . . . . . . . . . Follow-up Attacks . | . . . . . . . . . . . . Damage Inflicted 15053 | 180 1464 374 405 . 2355 . 1821 2693 901 540 4320 Guns 3740 | 180 811 181 150 . 771 . 573 224 . . 850 Cannons 8148 | . . 84 . . 969 . 1234 2184 901 540 2236 Explosions 3151 | . 653 109 255 . 615 . . 285 . . 1234 Melee . | . . . . . . . . . . . . Ramming 14 | . . . . . . . 14 . . . . Kinetic 6284 | . . 84 150 . 368 . 774 2152 901 540 1315 Thermal 5106 | 180 560 . . . 1104 . 1000 256 . . 2006 Explosive 2199 | . 551 109 255 . . . . 285 . . 999 Electromagnetic 1450 | . 353 181 . . 883 . 33 . . . . Impact . | . . . . . . . . . . . . Slashing . | . . . . . . . . . . . . Piercing . | . . . . . . . . . . . . Highest Corruption 26 | . . . . . 3 3 6 6 . . 26 Average Corruption 4 | . . . . . 1 3 3 5 . . 13 Corruption Purged 31 | . . . . . 1 . 4 6 . . 20 Corruption Blocked . | . . . . . . . . . . . . Effects 140 | . . . . . 4 10 66 30 . . 30 Message Errors 26 | . . . . . 1 2 15 5 . . 3 Matter Fused 35 | . . . . . 1 2 18 9 . . 5 Heat Flow Errors 20 | . . . . . . 1 11 3 . . 5 Energy Discharges 12 | . . . . . . 1 6 3 . . 2 Parts Rejected 2 | . . . . . . . 1 1 . . . Parts Fused 2 | . . . . . . . . 2 . . . Data Loss (minor) 18 | . . . . . 1 3 7 3 . . 4 Data Loss (major) 6 | . . . . . . . . 2 . . 4 Misfires 8 | . . . . . 1 1 4 . . . 2 Alerts 2 | . . . . . . . 2 . . . . Misdirections 1 | . . . . . . . . . . . 1 Weapon Failures 8 | . . . . . . . 2 2 . . 4 Overload Shots 3 | . . . . . . . . . 1 . 2 Overflow Damage 141 | . 15 . . . 21 . 7 9 . . 89 Projectiles 75 | . . . . . . . 7 7 . . 61 Explosions 66 | . 15 . . . 21 . . 2 . . 28 Melee . | . . . . . . . . . . . . Knockbacks 49 | . . 1 . . 6 . 22 9 3 1 7 Impact . | . . . . . . . . . . . . Kinetic 48 | . . 1 . . 5 . 22 9 3 1 7 Secondary 1 | . . . . . 1 . . . . . . Self-Inflicted Damage 663 | . 36 59 28 . 209 . 230 . . . 101 Shots 11 | . 1 2 2 . 3 . 2 . . . 1 Rammed 2 | . . . . . . . 2 . . . . Targets Rammed 2 | . . . . . . . 2 . . . . Kicked . | . . . . . . . . . . . . Crushed . | . . . . . . . . . . . . Highest Temperature 531 | 150 459 126 347 . 399 336 531 489 403 342 333 Average Temperature 111 | 51 79 32 193 . 126 117 120 98 167 101 115 Received Heat Transfer 1612 | . 189 36 609 . 297 . 141 170 35 43 92 Effects 28 | . 4 . 1 . 4 3 6 5 2 . 3 Shutdowns 4 | . 1 . . . 2 . . 1 . . . Energy Bleed 10 | . 2 . 1 . 1 1 1 2 1 . 1 Interference 8 | . . . . . . 2 4 . . . 2 Short Circuit 2 | . 1 . . . 1 . . . . . . Damage (minor) 2 | . . . . . . . 1 . 1 . . Damage (major) 2 | . . . . . . . . 2 . . . Siege Activations . | . . . . . . . . . . . . Martial Activations . | . . . . . . . . . . . . Shielding Activations . | . . . . . . . . . . . . Robots Disrupted 2 | . . . . . . . . . . . 2 Combat Hostiles 2 | . . . . . . . . . . . 2 Robots Corrupted 1 | . . . . . 1 . . . . . . Combat Hostiles 1 | . . . . . 1 . . . . . . Parts Fried 6 | . . 1 . . 4 . . 1 . . . Impact Corruptions . | . . . . . . . . . . . . Robots Melted 2 | . . . . . 1 . . 1 . . . Combat Hostiles 2 | . . . . . 1 . . 1 . . . Parts Melted 14 | . 3 . 2 . 3 . 4 2 . . . Heat Transferred 6634 | 569 1569 . . . 1505 . 1600 550 . . 841 Parts Sabotaged . | . . . . . . . . . . . . Parts Stolen . | . . . . . . . . . . . . Parts Stripped . | . . . . . . . . . . . . Power Chain Reactions 9 | . 3 . . . 4 . . . . . 2 Alert | -11 -10 -10 -10 -8 -6 -6 -6 -6 -6 -6 -6 ------- Run | Yrd Mat Min Sub Scr Fac Was Fac Ext Cet Arc Hub Maximum Alert Level 3 | . 1 . . . 1 . 2 3 2 2 3 Low Security (%) 57 | 100 73 100 . . 47 100 95 7 . 25 7 Level 1 28 | . 26 . . . 52 . . 64 14 63 12 Level 2 6 | . . . . . . . 3 6 85 10 12 Level 3 7 | . . . . . . . . 21 . . 67 Level 4 . | . . . . . . . . . . . . Level 5 . | . . . . . . . . . . . . High Security . | . . . . . . . . . . . . Max Security . | . . . . . . . . . . . . Peak Influence 978 | 5 311 110 . . 328 114 475 978 665 439 941 Initial 530 | . . 31 . . . 114 . 221 530 261 44 Average 207 | 1 137 14 . . 165 25 60 417 465 275 683 Influence Increases 7490 | 20 686 344 . . 1018 15 1291 1747 545 239 1585 Destroy 0b10 Robot/C 3500 | . 380 220 . . 460 . 680 800 260 80 620 Destroy 0b10 Robot/NC 290 | 20 30 . . . 50 . 20 60 10 5 95 Destroy Leader 680 | . 90 30 . . 104 . 182 96 20 . 158 Allied During Kill 1533 | . . 4 . . 64 . 77 674 211 85 418 Trap Triggered on 0b10 60 | . . . . . 50 . . . 10 . . Successful Hack 245 | . 20 . . . 66 . 90 43 . . 26 Select Force Hacks 110 | . 60 . . . . . . . . . 50 Disable Machine 360 | . 30 15 . . 30 . 90 . 15 60 120 Destroy Structure 442 | . 46 60 . . 74 15 107 29 19 9 83 Partial Spotted 30 | . . . . . 15 . . 15 . . . Lose Combat Pursuer 240 | . 30 15 . . 105 . 45 30 . . 15 Influence Decreases 6589 | 20 606 424 . . 692 341 838 1252 840 764 812 Entered New Map 1387 | . . 49 . . . 212 . 232 418 392 84 Time Decay 3963 | 20 596 345 . . 522 129 419 730 362 362 478 Lost Part 380 | . 10 10 . . 10 . 60 110 . 10 170 Lost Ally 770 | . . 20 . . 160 . 270 180 60 . 80 Purge Threat 89 | . . . . . . . 89 . . . . Squads Dispatched 50 | . 4 1 . . 15 . 17 4 . . 9 Investigation 14 | . 4 1 . . 5 . 3 . . . 1 Extermination 16 | . . . . . 6 . 8 . . . 2 Reinforcement 12 | . . . . . 4 . 2 2 . . 4 Assault 3 | . . . . . . . . 2 . . 1 Garrison 5 | . . . . . . . 4 . . . 1 Intercept . | . . . . . . . . . . . . Searches Triggered . | . . . . . . . . . . . . Construction Impeded 5 | . . . . . 1 . . 1 . . 3 Haulers Reinforced 1 | . . . . . 1 . . . . . . Active Scanning Responses . | . . . . . . . . . . . . Cargo Convoy Interrupts . | . . . . . . . . . . . . Stealth | -11 -10 -10 -10 -8 -6 -6 -6 -6 -6 -6 -6 --------- Run | Yrd Mat Min Sub Scr Fac Was Fac Ext Cet Arc Hub Distress Signals 15 | . 2 . . . 2 . 2 4 2 . 3 Communications Jammed 256 | . . . . . . . 2 254 . . . Distress Signals 256 | . . . . . . . 2 254 . . . Times Spotted 225 | . 28 14 6 . 32 . 26 45 13 13 48 Peak Tracking Total 7 | . 4 3 2 . 3 . 4 7 5 2 7 Tactical Retreats 12 | . 2 1 . . 5 . 2 1 . . 1 Traps | -11 -10 -10 -10 -8 -6 -6 -6 -6 -6 -6 -6 ------- Run | Yrd Mat Min Sub Scr Fac Was Fac Ext Cet Arc Hub Traps Triggered 14 | . . . . . 7 . 3 4 . . . Indirectly . | . . . . . . . . . . . . Trap Hack Attempts . | . . . . . . . . . . . . Triggered . | . . . . . . . . . . . . Disarmed 6 | . 6 . . . . . . . . . . Reprogrammed 6 | . . . . . 6 . . . . . . Reused 6 | . . . . . 5 . . . 1 . . Traps Extracted . | . . . . . . . . . . . . Installed 2 | . . . . . . . . . 2 . . Triggered 6 | . . . . . 5 . . . 1 . . Most Traps Carried 3 | . . . . 3 3 3 3 3 2 . . Machines | -11 -10 -10 -10 -8 -6 -6 -6 -6 -6 -6 -6 ---------- Run | Yrd Mat Min Sub Scr Fac Was Fac Ext Cet Arc Hub Machines Disabled 27 | . 2 1 . . 2 . 6 3 1 4 8 Max in Single Turn 2 | . 1 1 . . 1 . 2 . 1 1 1 Garrison Access 3 | . . . . . 1 . 1 . . . 1 Network Hub 2 | . . . . . . . . . . . 2 Machines Repaired . | . . . . . . . . . . . . Machines Dismantled . | . . . . . . . . . . . . Machines Sabotaged 1 | . . . . . . . . . . . 1 Overloaded Fab Kills . | . . . . . . . . . . . . Hacking | -11 -10 -10 -10 -8 -6 -6 -6 -6 -6 -6 -6 --------- Run | Yrd Mat Min Sub Scr Fac Was Fac Ext Cet Arc Hub Machines Accessed 77 | . 11 1 . 9 17 . 21 12 2 1 3 Terminals 38 | . 8 . . . 6 . 9 11 2 . 2 Fabricators 9 | . . . . . 4 . 5 . . . . Repair Stations 8 | . 1 . . . 4 . 2 1 . . . Recycling Units 7 | . 2 . . . 2 . 3 . . . . Scanalyzers 1 | . . . . . . . 1 . . . . Garrison Access 3 | . . . . . 1 . 1 . . . 1 Total Hacks 284 | . 40 1 . 55 52 . 74 24 3 25 10 Successful 184 | . 24 1 . 55 25 . 42 8 . 25 4 Failed 99 | . 15 . . . 27 . 32 16 3 . 6 Catastrophic 22 | . . . . . 6 . 8 6 1 . 1 Database Lockouts 1 | . 1 . . . . . . . . . . Manual 87 | . 17 . . . 24 . 35 6 1 . 4 Terminals 114 | . 25 . . . 21 . 36 23 3 . 6 Fabricators 34 | . . . . . 13 . 21 . . . . Repair Stations 31 | . 10 . . . 13 . 7 1 . . . Recycling Units 17 | . 5 . . . 4 . 8 . . . . Scanalyzers 1 | . . . . . . . 1 . . . . Garrison Access 6 | . . . . . 1 . 1 . . . 4 Terminal Hacks 116 | . 8 1 . 55 6 . 12 8 . 25 1 Record 79 | . . . . 54 . . . . . 25 . Part Schematic 3 | . . . . . 1 . 1 1 . . . Robot Schematic 1 | . . . . . . . 1 . . . . Robot Analysis 5 | . 2 . . . . . 3 . . . . Prototype ID Bank 4 | . 2 . . . 1 . 1 . . . . Open Door 6 | . . 1 . . . . . 5 . . . Terminal Index 3 | . 1 . . . 1 . 1 . . . . Fabricator Index 1 | . . . . . . . 1 . . . . Alert Level 2 | . . . . . . . 1 1 . . . Unreport Threat 1 | . . . . . . . 1 . . . . Locate Traps 7 | . 2 . . . 1 . 2 1 . . 1 Disarm Traps 1 | . 1 . . . . . . . . . . Reprogram Traps 1 | . . . . . 1 . . . . . . Zone Layout 1 | . . . . . 1 . . . . . . Proto ID Catalog 1 | . . . . 1 . . . . . . . Fabricator Hacks 6 | . . . . . 2 . 4 . . . . Network Status 2 | . . . . . 2 . . . . . . Load Schematic 2 | . . . . . . . 2 . . . . Build 2 | . . . . . . . 2 . . . . Repair Station Hacks 20 | . 8 . . . 7 . 5 . . . . Scan Component 12 | . 4 . . . 5 . 3 . . . . Repair 8 | . 4 . . . 2 . 2 . . . . Recycling Unit Hacks 3 | . 1 . . . . . 2 . . . . Retrieve Components 3 | . 1 . . . . . 2 . . . . Scanalyzer . | . . . . . . . . . . . . Garrison Access Hacks 3 | . . . . . 1 . 1 . . . 1 Seal Access 3 | . . . . . 1 . 1 . . . 1 Unauthorized Hacks 36 | . 7 . . . 9 . 18 . . . 2 Terminals 17 | . 4 . . . 3 . 8 . . . 2 Track 3 | . 1 . . . . . 2 . . . . Assimilate 1 | . . . . . . . 1 . . . . Botnet 9 | . 2 . . . 2 . 4 . . . 1 Operators 3 | . 1 . . . 1 . 1 . . . . Sabotage 1 | . . . . . . . . . . . 1 Fabricators 14 | . . . . . 6 . 8 . . . . Report 2 | . . . . . 1 . 1 . . . . Prioritize 1 | . . . . . . . 1 . . . . Liberate 7 | . . . . . 3 . 4 . . . . Fabnet 2 | . . . . . 1 . 1 . . . . Haulers 2 | . . . . . 1 . 1 . . . . Repair Stations . | . . . . . . . . . . . . Recycling Units 5 | . 3 . . . . . 2 . . . . Reject 1 | . 1 . . . . . . . . . . Tunnel 2 | . 2 . . . . . . . . . . Fedlink 1 | . . . . . . . 1 . . . . Scrapoids 1 | . . . . . . . 1 . . . . Scanalyzers . | . . . . . . . . . . . . Garrison Access . | . . . . . . . . . . . . Data Cores Recovered . | . . . . . . . . . . . . Used . | . . . . . . . . . . . . Hacking Detections 56 | . 11 . . . 16 . 17 8 2 . 2 Full Trace Events 8 | . 3 . . . 4 . 1 . . . . Feedback Events . | . . . . . . . . . . . . Feedback Blocked . | . . . . . . . . . . . . Robot Schematics Acquired 1 | . . . . . . . 1 . . . . Robots Built 1 | . . . . . . . 1 . . . . Authchips . | . . . . . . . . . . . . Time 152 | . . . . . . . 152 . . . . Total Robot Build Rating 5 | . . . . . . . 5 . . . . Part Schematics Acquired 3 | . . . . . 1 . 1 1 . . . Parts Built 1 | . . . . . . . 1 . . . . Authchips . | . . . . . . . . . . . . Time 106 | . . . . . . . 106 . . . . Total Part Build Rating 6 | . . . . . . . 6 . . . . Part Studies Acquired . | . . . . . . . . . . . . Parts Repaired 8 | . 4 . . . 2 . 2 . . . . Time 195 | . 110 . . . 44 . 41 . . . . Parts Recycled . | . . . . . . . . . . . . Recycled Matter . | . . . . . . . . . . . . Retrieved Matter . | . . . . . . . . . . . . Retrieved Components 20 | . 10 . . . . . 10 . . . . Parts Scanalyzed . | . . . . . . . . . . . . Part Schematics Acquired . | . . . . . . . . . . . . Parts Damaged . | . . . . . . . . . . . . Bothacking | -11 -10 -10 -10 -8 -6 -6 -6 -6 -6 -6 -6 ------------ Run | Yrd Mat Min Sub Scr Fac Was Fac Ext Cet Arc Hub Used RIF Installer . | . . . . . . . . . . . . Robots Hacked 3 | . . . . 2 . . . . . 1 . Non-combat 1 | . . . . . . . . . . 1 . Combat 2 | . . . . 2 . . . . . . . Robot Hacks Applied 3 | . . . . 2 . . . . . 1 . parse_system 2 | . . . . 2 . . . . . . . check_alert 1 | . . . . . . . . . . 1 . Relay Couplers Released . | . . . . . . . . . . . . Fabnet Peak Effective % . | . . . . . . . . . . . . Robots Rewired 10 | . . . . . . . . 9 . . 1 Allies Hacked . | . . . . . . . . . . . . Hacks Repelled . | . . . . . . . . . . . . Allies | -11 -10 -10 -10 -8 -6 -6 -6 -6 -6 -6 -6 -------- Run | Yrd Mat Min Sub Scr Fac Was Fac Ext Cet Arc Hub Total Allies 52 | . . 4 . . 10 . 18 14 5 . 1 Largest Group 15 | . . 3 1 . 5 . 8 15 6 5 4 Highest-Rated Group 609 | . . 40 8 . 235 . 227 590 609 520 384 Highest-Rated Ally 159 | . . 31 8 . 47 . 29 159 159 136 110 Total Orders 39 | . . 2 1 . 1 . 1 25 . 7 2 STAY 21 | . . 1 1 . . . 1 14 . 3 1 FOLLOW 17 | . . 1 . . . . . 11 . 4 1 EXPLORE 1 | . . . . . 1 . . . . . . Ally Attacks 645 | . . 15 1 . 72 . 152 208 81 10 106 Total Damage 13776 | . . 125 . . 1750 . 2204 4205 2071 223 3198 Kills 106 | . . 2 . . 15 . 16 40 10 1 22 Allies Corrupted 1 | . . . . . . . . 1 . . . Allies Melted 1 | . . . . . . . 1 . . . . Intel | -11 -10 -10 -10 -8 -6 -6 -6 -6 -6 -6 -6 ------- Run | Yrd Mat Min Sub Scr Fac Was Fac Ext Cet Arc Hub Active Infowar (turns) 17121 | 82 2850 1879 . . 2670 587 4548 3595 788 31 91 Sensors 11535 | . . . . . 2657 575 3889 3595 788 31 . IFF 42 | . . . . . . . . . . . 42 Terrain 4811 | 82 2850 1879 . . . . . . . . . Machine Analysis 49 | . . . . . . . . . . . 49 Cloaking 2209 | . . . . . 1017 587 605 . . . . Jamming 9069 | . . . . . 478 587 4072 3575 357 . . Robot Analysis Total 5 | . 2 . . . . . 3 . . . . Derelict Logs Recovered 2 | . . 1 . 1 . . . . . . . Drone Launches 1 | . . . . . 1 . . . . . . Drone Recoveries . | . . . . . . . . . . . . Exploration | -11 -10 -10 -10 -8 -6 -6 -6 -6 -6 -6 -6 ------------- Run | Yrd Mat Min Sub Scr Fac Was Fac Ext Cet Arc Hub Turns Passed 27006 | 151 2850 2192 251 5978 3884 587 4636 3595 824 837 1221 Spaces Moved 12140 | 76 1374 894 154 3799 1543 178 1652 1272 477 203 518 Core 15 | 15 . . . . . . . . . . . Treads 699 | . . . 3 696 . . . . . . . Legs 2126 | 61 1347 718 . . . . . . . . . Wheels 9300 | . 27 176 151 3103 1543 178 1652 1272 477 203 518 Hover . | . . . . . . . . . . . . Flight . | . . . . . . . . . . . . Fastest Speed 50 | 50 110 125 125 100 220 224 212 115 145 145 115 Average Speed 179 | 137 149 177 127 153 220 224 220 227 145 145 137 Slowest Speed 360 | 250 260 190 240 320 224 224 360 235 145 145 145 Overloaded Moves . | . . . . . . . . . . . . Propulsion Burnouts . | . . . . . . . . . . . . Robots Hopped . | . . . . . . . . . . . . Potential Cave-ins 62 | . . 16 . . 6 37 3 . . . . Cave-ins Triggered . | . . . . . . . . . . . . Exploration Rate (%) 61 | 5 97 97 11 93 39 57 39 85 83 88 42 Regions Visited 11 Branch Regions 7 Pre-discovered Areas 2 | . 2 . . . . . . . . . . Known Exits Taken 4 | . . . . . . . 1 1 1 1 . Unknown Exits Taken 5 | 1 1 1 1 1 . . . . . . . Scrap Searched 13 | . . 2 . 11 . . . . . . . Spaces Dug 117 | . 5 19 . . 17 39 34 1 . . 2 Terrain Destroyed 583 | . 55 105 48 . 70 40 126 29 13 9 88 Melee . | . . . . . . . . . . . . Projectile 201 | . 5 . . . 19 40 50 11 13 9 54 AOE 382 | . 50 105 48 . 51 . 76 18 . . 34 Terrain Rammed . | . . . . . . . . . . . . Walls Destroyed . | . . . . . . . . . . . . Machines Disabled . | . . . . . . . . . . . . Actions | -11 -10 -10 -10 -8 -6 -6 -6 -6 -6 -6 -6 --------- Run | Yrd Mat Min Sub Scr Fac Was Fac Ext Cet Arc Hub Total 16491 | 99 2045 1454 185 3960 1924 328 2530 1860 562 706 838 Wait 3031 | . 545 489 13 31 198 108 669 336 13 480 149 Move 12130 | 75 1373 893 153 3798 1543 177 1651 1271 476 202 518 Hop . | . . . . . . . . . . . . Pick Up 267 | 7 18 9 1 81 37 1 53 32 14 . 14 Fast Attach 61 | 7 7 1 . 4 6 . 7 6 2 3 18 Attach 65 | . 3 4 . 7 21 . 7 7 2 . 14 Detach 7 | . 2 . . . . . . 3 . . 2 Swap 161 | . 19 15 4 3 35 2 36 26 14 . 7 Drop 169 | . 18 12 1 34 23 1 21 20 17 2 20 Fire 477 | 10 60 31 13 . 60 39 84 56 22 18 84 Melee 3 | . . . . 2 . . . . . 1 . Ram 2 | . . . . . . . 2 . . . . Kick . | . . . . . . . . . . . . Crush . | . . . . . . . . . . . . Escape Stasis 24 | . . . . . . . . 24 . . . Rewire 92 | . . . . . 1 . . 79 . . 12 Trap 2 | . . . . . . . . . 2 . . Miscellaneous . | . . . . . . . . . . . . Route ------- -11/Scrapyard -10/Materials (discovered 6 exits: [*Mat x3] / *Min x2 / [Sub]) -10/Mines (discovered 3 exits: [*Mat x2] / [*Sub]) -10/Subcaves -8/Scraptown (discovered 2 exits: *Fac x2) -6/Factory (discovered 3 exits: *Fac x2 / *Low) -6/Waste -6/Factory (discovered 5 exits: *Fac x2 / *Low x2 / *Ext) -6/Extension (discovered 3 exits: *Fac x2 / *Cet) -6/Cetus (discovered 2 exits: *Fac / *Arc) -6/Archives (discovered 3 exits: *Fac / *Hub x2) -6/Hub_04(d) (discovered 2 exits: *Fac x2) History --------- Turn | Location | Event 27 | -11/Scrapyard | Discovered new exit (range 14) 152 | -11/Scrapyard | Entered Materials 247 | -10/Materials | Discovered new exit (range 14) 306 | -10/Materials | Build established: Mutant 794 | -10/Materials | Discovered new exit (range 10) 885 | -10/Materials | Discovered new exit (range 14) 1305 | -10/Materials | Discovered new exit (range 10) 1328 | -10/Materials | Central database locked down 1337 | -10/Materials | Build established: Scavenger-Mutant 1438 | -10/Materials | Discovered new exit (range 16) 1575 | -10/Materials | Repaired EM Pulse Gun 1609 | -10/Materials | Repaired Particle Gun 1737 | -10/Materials | Discovered new exit (range 3) 2138 | -10/Materials | Repaired Aluminum Leg 2159 | -10/Materials | Build established: Mutant 2725 | -10/Materials | Repaired EM Pulse Gun 3002 | -10/Materials | Entered Mines 3380 | -10/Mines | Core integrity fell below 50% 3504 | -10/Mines | Assisted by bots powering up and referring to "LRC-V3" 3745 | -10/Mines | Discovered new exit (range 6) 4004 | -10/Mines | Discovered new exit (range 4) 4033 | -10/Mines | Discovered new exit (range 5) 4083 | -10/Mines | Excavation squad dispatched 4083 | -10/Mines | A large section of the Mines collapsed 4741 | -10/Mines | Learned Materials machine intel 4754 | -10/Mines | Received a Mining Laser from a helpful Derelict 4832 | -10/Mines | Build established: Scavenger-Mutant 4878 | -10/Mines | Met a Derelict shopkeep closing up shop 5170 | -10/Mines | Build established: Mutant 5194 | -10/Mines | Entered Subcaves 5194 | -10/Subcaves | Accompanied by 1 ally 5195 | -10/Subcaves | Approached by a straggling Scientist 5197 | -10/Subcaves | Shifting Twisted Machinery released Shrapnel Trap 5208 | -10/Subcaves | Shifting Twisted Machinery released Piercing Trap 5331 | -10/Subcaves | A swath of the cavern ceiling suddenly collapsed 5413 | -10/Subcaves | A swath of the cavern ceiling suddenly collapsed 5415 | -10/Subcaves | Core integrity fell below 20% 5445 | -10/Subcaves | Entered Scraptown 5526 | -8/Scraptown | Received an X-ray algorithm 5699 | -8/Scraptown | Heard Great Nut preacher, LISTEN AND RECITE! 5774 | -8/Scraptown | Scanned Subdweller tech in exchange for log data 5779 | -8/Scraptown | Learned 8 Research zone layouts 5802 | -8/Scraptown | Discovered new exit (range 5) 5970 | -8/Scraptown | Visited Cave Peace 6035 | -8/Scraptown | Visited Symbiants 6085 | -8/Scraptown | Visited Bundlers 6532 | -8/Scraptown | Visited Spacefarers 6565 | -8/Scraptown | Visited Red Mages 6971 | -8/Scraptown | Visited Cyclists 7021 | -8/Scraptown | Visited UFD Registry 7261 | -8/Scraptown | Registered with UFD as "Railwalker" 7301 | -8/Scraptown | Entered Cyclist Reading Room 7445 | -8/Scraptown | Guru changed UFD alias to "Shortbox" 7562 | -8/Scraptown | Visited Cartography Club 7646 | -8/Scraptown | Visited Derelict Rescue Squad 7692 | -8/Scraptown | Visited Science Testing Area 7712 | -8/Scraptown | Visited LU-1G1's Boring Crew 7776 | -8/Scraptown | Visited Scrapoid Pod Storage 7802 | -8/Scraptown | Visited Abandonware Association 7813 | -8/Scraptown | Learned abandonware demo "OVRCLOCK.EXE" 7834 | -8/Scraptown | Learned abandonware demo "KABOOM.EXE" 7834 | -8/Scraptown | Learned abandonware demo "MELTYB.EXE" 7860 | -8/Scraptown | Visited DA-N13 Charitable Foundation 7867 | -8/Scraptown | Found DCF Scrap (29 items) 7899 | -8/Scraptown | Visited Science Guys 7965 | -8/Scraptown | Visited Junk Repository 9570 | -8/Scraptown | Found Scrapoid Pod 9594 | -8/Scraptown | Build established: Hauler-Mutant 11194 | -8/Scraptown | Met Optimus 11194 | -8/Scraptown | Accepted into 0bPrime 11336 | -8/Scraptown | Found Scrap Suit 11415 | -8/Scraptown | Discovered new exit (range 5) 11423 | -8/Scraptown | Entered Factory 11423 | -6/Factory | Evolved 8 slots: Utility x7, Weapon x1 11669 | -6/Factory | Repaired Arm. Huge Wheel 12034 | -6/Factory | Build established: Hauler-Gunner 12396 | -6/Factory | Build established: Hauler-Tank 12591 | -6/Factory | Scrapoid Pod released 06F05-D (x5) 13226 | -6/Factory | Discovered new exit (range 12) 13248 | -6/Factory | Identified exit to Factory 13658 | -6/Factory | Lost 3 allies 13757 | -6/Factory | Repaired Arm. Huge Wheel 13912 | -6/Factory | Discovered new exit (range 10) 13925 | -6/Factory | Identified exit to Lower Caves 14417 | -6/Factory | Discovered exit to Factory (range 15) 15307 | -6/Factory | Sucked down chute 15307 | -6/Factory | Entered Waste 15325 | -6/Waste | Spotted C-40 Crusher 15375 | -6/Waste | Spotted C-40 Crusher 15472 | -6/Waste | Spotted C-40 Crusher 15506 | -6/Waste | Spotted C-40 Crusher 15551 | -6/Waste | Build established: Hauler-Skirmisher 15581 | -6/Waste | Spotted C-40 Crusher 15687 | -6/Waste | Discovered new exit (range 11) 15892 | -6/Waste | Identified exit to Factory 15894 | -6/Waste | Entered Factory 16534 | -6/Factory | Discovered exit to Lower Caves (range 15) 16879 | -6/Factory | Fabricated Hvy. Treads (x1) 17511 | -6/Factory | Discovered exit to Factory (range 5) 17730 | -6/Factory | Fabricated M-22 Extractor (x1) 17939 | -6/Factory | Repaired Humpback 18086 | -6/Factory | Repaired Ovr. Beamcaster 18549 | -6/Factory | Discovered new exit (range 12) 18571 | -6/Factory | Identified exit to Extension 18772 | -6/Factory | Garrison activated, responded to threat 19249 | -6/Factory | Found Prototype Launcher 19478 | -6/Factory | Identified Scatter Rocket Array 20031 | -6/Factory | Discovered exit to Lower Caves (range 15) 20120 | -6/Factory | Loaded intel: 8 recycling unit locations 20140 | -6/Factory | Discovered exit to Factory (range 12) 20326 | -6/Factory | Scrapoid reinforcements arrived 20359 | -6/Factory | Garrison activated, responded to threat 20530 | -6/Factory | Entered Extension 20530 | -6/Extension | Accompanied by 4 allies 20921 | -6/Extension | Rescued A7 21385 | -6/Extension | Spotted B-75 Beast 21472 | -6/Extension | Spotted B-75 Beast 21476 | -6/Extension | Destroyed B-75 Beast 21501 | -6/Extension | Allies destroyed B-75 Beast 21530 | -6/Extension | Disrupted transfer network 21989 | -6/Extension | Build established: Hauler-Tank 22341 | -6/Extension | Discovered exit to Factory (range 3) 22690 | -6/Extension | Rescued a captive Derelict 22716 | -6/Extension | Rescued a captive Derelict 22825 | -6/Extension | Build established: Commander-Tank 23145 | -6/Extension | Discovered new exit (range 16) 23147 | -6/Extension | Discovered exit to Factory (range 15) 23338 | -6/Extension | Rescued a captive Derelict 23341 | -6/Extension | Rescued a captive Derelict 23680 | -6/Extension | First assault squad dispatched 23930 | -6/Extension | Identified exit to Cetus 24071 | -6/Extension | Lost 11 parts (1n5u4w) 24076 | -6/Extension | Lost 8 allies 24125 | -6/Extension | Entered Cetus 24125 | -6/Cetus | Accompanied by 5 allies (A7) 24130 | -6/Cetus | Acquired a Cetus Manufacturing Module code from A7 24137 | -6/Cetus | Spotted Cetus Guard 24137 | -6/Cetus | Spotted Cetus Guard 24142 | -6/Cetus | Spotted Cetus Guard 24147 | -6/Cetus | Spotted Cetus Guard 24151 | -6/Cetus | Destroyed Cetus Guard 24168 | -6/Cetus | Allies destroyed Cetus Guard 24174 | -6/Cetus | Destroyed Cetus Guard 24177 | -6/Cetus | Allies destroyed Cetus Guard 24188 | -6/Cetus | Lost 4 allies 24359 | -6/Cetus | Build established: Tank 24499 | -6/Cetus | Escorted A7 to Cetus Mainframe 24514 | -6/Cetus | Started Cetus Manufacturing Module 24537 | -6/Cetus | Discovered new exit (range 15) 24539 | -6/Cetus | Manufactured an Enhanced Grunt 24564 | -6/Cetus | Manufactured an Enhanced Grunt 24589 | -6/Cetus | Manufactured an Enhanced Grunt 24614 | -6/Cetus | Manufactured an Enhanced Grunt 24614 | -6/Cetus | Spotted Cetus Guard 24615 | -6/Cetus | Spotted Cetus Guard 24618 | -6/Cetus | Destroyed Cetus Guard 24618 | -6/Cetus | Destroyed Cetus Guard 24627 | -6/Cetus | Allies destroyed Cetus Guard 24627 | -6/Cetus | Spotted Cetus Guard 24638 | -6/Cetus | Allies destroyed Cetus Guard 24639 | -6/Cetus | Manufactured an Enhanced Grunt 24650 | -6/Cetus | Discovered exit to Factory (range 16) 24657 | -6/Cetus | Met Revision 17 24875 | -6/Cetus | Security sweep announced 24903 | -6/Cetus | Build established: Commander-Tank 24940 | -6/Cetus | Identified exit to Archives 24949 | -6/Cetus | Entered Archives 24949 | -6/Archives | Accompanied by 5 allies (A7) 24954 | -6/Archives | Received a hacking code to weaken MAIN.C 25029 | -6/Archives | Unable to access archive contents 25053 | -6/Archives | Discovered new exit (range 16) 25069 | -6/Archives | Unable to access archive contents 25083 | -6/Archives | Unable to access archive contents 25102 | -6/Archives | Discovered exit to Factory (range 15) 25148 | -6/Archives | Discovered new exit (range 14) 25172 | -6/Archives | Identified exit to Hub_04(d) 25786 | -6/Archives | Entered Hub_04(d) 25786 | -6/Hub_04(d) | Accompanied by 4 allies 25883 | -6/Hub_04(d) | Discovered exit to Factory (range 10) 26049 | -6/Hub_04(d) | Network Hub disabled 26061 | -6/Hub_04(d) | Spotted B-75 Beast 26077 | -6/Hub_04(d) | Allies destroyed B-75 Beast 26081 | -6/Hub_04(d) | Found Prototype Device 26081 | -6/Hub_04(d) | Identified Exp. Thermal Shield 26085 | -6/Hub_04(d) | Garrison activated, responded to threat 26224 | -6/Hub_04(d) | Spotted Lightning 26228 | -6/Hub_04(d) | Spotted Lightning 26228 | -6/Hub_04(d) | Spotted Lightning 26254 | -6/Hub_04(d) | Core integrity fell below 50% 26255 | -6/Hub_04(d) | Destroyed Lightning 26272 | -6/Hub_04(d) | Rewired Lightning 26309 | -6/Hub_04(d) | Destroyed Lightning 26337 | -6/Hub_04(d) | Found Prototype Energy Cannon 26345 | -6/Hub_04(d) | Identified EMDS 26389 | -6/Hub_04(d) | System corruption reached 10% 26486 | -6/Hub_04(d) | First assault squad dispatched 26526 | -6/Hub_04(d) | Spotted Lightning 26528 | -6/Hub_04(d) | Spotted Lightning 26532 | -6/Hub_04(d) | Spotted Lightning 26554 | -6/Hub_04(d) | Destroyed Lightning 26594 | -6/Hub_04(d) | Destroyed Lightning 26604 | -6/Hub_04(d) | Core integrity fell below 20% 26639 | -6/Hub_04(d) | Discovered exit to Factory (range 14) 26640 | -6/Hub_04(d) | Allies destroyed Lightning 26644 | -6/Hub_04(d) | Lost 9 parts (1n4u4w) 26916 | -6/Hub_04(d) | Spotted Lightning 26917 | -6/Hub_04(d) | Spotted Lightning 26922 | -6/Hub_04(d) | Spotted Lightning 26934 | -6/Hub_04(d) | Destroyed Lightning 26979 | -6/Hub_04(d) | Build established: Scavenger-Tank 26979 | -6/Hub_04(d) | Network Hub disabled 27007 | -6/Hub_04(d) | Destroyed by Lightning with EMDS Last Messages --------------- 26990_ U-05 Engineer builds a Wall. 26991_ System corrupted: Adv. Variable Charge Gun failed to cycle. 26994_ Destroyed Prototype Device. 26994_ U-05 Engineer builds a Door. 26995_ ALERT: Construction progress impeded, dispatching reinforcements to local area. 26995_ Penetrated by EMDS Slug. 26997_ U-05 Engineer destroyed. 26999_ Penetrated by EMDS Slug. 27000_